Cogmind - Beta 13 @@@ ROGUE MODE // 2024.03.25 @ 00:13:38 Player: f_ Result: Destroyed by as-45978 with Assembled Heavy Rifle Performance ------------- Evolutions (0) 0 Regions Visited (2) 400 Robots Destroyed (25) 125 Value Destroyed (387) 387 Prototype IDs (0) 0 Alien Tech Used (0) 0 Bonus (0) 0 TOTAL SCORE: 912 Bonus ------- None Cogmind --------- Core Integrity 0/250 Matter 263/300 Energy 48/100 System Corruption 0% Temperature Hot (211) Movement Core (400) Ox7 Location -10/Mines Parts ------- > --- POWER (1) -------- (None) > --- PROPULSION (2) --- (None) > --- UTILITY (2) ------ Large Storage Unit Sensor Array > --- WEAPON (2) ------- Beam Cannon > --- INVENTORY (15) --- Wheel Wheel Wheel Wheel Compact Wheel Signal Interpreter Improved Terrain Scanner Light Armor Plating Light Armor Plating Light Armor Plating Light Armor Plating Assault Rifle Light Assault Rifle Light Cannon Mining Claw Peak State ------------ > --- POWER ------------ Light Ion Engine > --- PROPULSION ------- Wheel Wheel > --- UTILITY ---------- Large Storage Unit Sensor Array > --- WEAPON ----------- Medium Laser Assault Rifle > --- INVENTORY -------- Wheel Light Armor Plating Light Armor Plating Light Armor Plating Light Armor Plating Light Assault Rifle Light Assault Rifle Light Cannon Grenade Launcher Mining Claw [Rating: 8] Favorites ----------- Power Light Ion Engine Engine Light Ion Engine Propulsion Wheel Wheel Wheel Utility Sensor Array Device Sensor Array Storage Large Storage Unit Weapon Medium Laser Energy Gun Medium Laser Energy Cannon Beam Cannon Ballistic Gun Assault Rifle Launcher Grenade Launcher Build | -11 -10 -10 ------- Run | Yrd Mat Min Slots Evolved . | . . . Power . | . . . Propulsion . | . . . Utility . | . . . Weapon . | . . . Parts Attached 17 | 4 11 2 Power 3 | 1 1 1 Engine 3 | 1 1 1 Core . | . . . Reactor . | . . . Propulsion 2 | 2 . . Treads . | . . . Leg . | . . . Wheel 2 | 2 . . Hover . | . . . Flight . | . . . Utility 4 | 1 3 . Device 1 | . 1 . Storage 3 | 1 2 . Processor . | . . . Hackware . | . . . Protection . | . . . Artifact . | . . . Weapon 8 | . 7 1 Energy Gun 2 | . 2 . Energy Cannon 1 | . . 1 Ballistic Gun 2 | . 2 . Ballistic Cannon . | . . . Launcher 3 | . 3 . Special Weapon . | . . . Impact Weapon . | . . . Slashing Weapon . | . . . Piercing Weapon . | . . . Special Melee Weapon . | . . . Unidentified Prototypes . | . . . Parts Lost 6 | . 1 5 Power 2 | . 1 1 Propulsion 2 | . . 2 Utility . | . . . Weapon 2 | . . 2 Highest Loss Streak 3 | . 1 3 To Critical Strikes . | . . . Average Slot Usage (%) 93 | . 95 80 Engine 10 | . 11 6 Wheel 26 | . 28 18 Device 12 | . 12 14 Storage 14 | . 14 14 Energy Gun 13 | . 13 13 Ballistic Gun 4 | . 5 . Launcher 7 | . 8 6 Naked Turns . | . . . Heaviest Build 29 | 8 29 29 Greatest Support 20 | 20 20 20 Greatest Overweight (x) 2 | . 1 2 Average Overweight (x) . | . . 1 Largest Inventory Capacity 15 | 8 15 15 Average Capacity 13 | 7 13 15 Most Carried 15 | 3 15 15 Average Carried 11 | 1 10 14 Final Capacity 15 | 8 15 15 Final Carried 15 | 3 15 15 Class Distribution -------------------- 100% | Mutant Dominant Class ---------------- Mutant | -10/Materials Mutant | -10/Mines Resources | -11 -10 -10 ----------- Run | Yrd Mat Min Matter Collected 507 | 122 334 51 Remotely . | . . . Salvage Created 567 | . 520 47 Parts 35 | . 35 . Haulers Intercepted 2 | . 2 . Recyclers Shooed 1 | . 1 . Parts Field Recycled . | . . . Retrieved Matter . | . . . Parts Self-Destructed . | . . . Prevented . | . . . Kills | -11 -10 -10 ------- Run | Yrd Mat Min Combat Hostiles Destroyed 13 | . 10 3 Guns 3 | . 1 2 Cannons 1 | . . 1 AOE 9 | . 9 . Classes Destroyed 11 | . 10 1 Worker 2 | . 2 . Builder 2 | . 2 . Tunneler 1 | . 1 . Hauler 2 | . 2 . Recycler 2 | . 2 . Mechanic 1 | . 1 . Operator 2 | . 2 . Watcher 3 | . 3 . Swarmer 6 | . 6 . Grunt 4 | . 4 . Assembled 3 | . . 3 Best Kill Streak 8 | . 8 1 Combat Bots Only 3 | . 3 1 Max Kills in Single Turn 3 | . 3 1 Gunslinging . | . . . Exploded 2 | . 2 . Melee . | . . . Uniques/NPCs Destroyed . | . . . Combat | -11 -10 -10 -------- Run | Yrd Mat Min Hostile Shots Fired 59 | . 29 30 Missed 16 | . 9 7 Damage Taken 673 | . 273 400 Core 252 | . 79 173 Absorbed by Shields . | . . . Core Remaining (%) 100 | 100 . . Volleys Fired 67 | . 48 19 Largest 2 | . 2 2 Hottest 110 | . 80 110 Shots Fired 91 | . 67 24 Gun 64 | . 52 12 Cannon 12 | . . 12 Launcher 15 | . 15 . Special . | . . . Kinetic 18 | . 18 . Thermal 58 | . 34 24 Explosive 15 | . 15 . Electromagnetic . | . . . Robot Hit Streak 5 | . 5 4 Robot Miss Streak 6 | . 6 3 Penetration Max . | . . . Secondary Targets . | . . . Shots Hit Robots 46 | . 34 12 Core Hits 41 | . 35 6 Critical Kills . | . . . Critical Parts Destroyed . | . . . Critical Strikes 4 | . 4 . Burn 4 | . 4 . Melee Attacks . | . . . Impact . | . . . Slashing . | . . . Piercing . | . . . Sneak Attacks . | . . . Combat Hostiles . | . . . Follow-up Attacks . | . . . Damage Inflicted 1576 | . 1404 172 Guns 481 | . 395 86 Cannons 86 | . . 86 Explosions 1009 | . 1009 . Melee . | . . . Ramming . | . . . Kinetic 170 | . 170 . Thermal 397 | . 225 172 Explosive 1009 | . 1009 . Electromagnetic . | . . . Impact . | . . . Slashing . | . . . Piercing . | . . . Highest Corruption . | . . . Average Corruption . | . . . Corruption Purged . | . . . Corruption Blocked . | . . . Overload Shots . | . . . Overflow Damage 4 | . 4 . Projectiles . | . . . Explosions 4 | . 4 . Melee . | . . . Knockbacks . | . . . Impact . | . . . Kinetic . | . . . Secondary . | . . . Self-Inflicted Damage 2 | . 2 . Shots 1 | . 1 . Rammed . | . . . Targets Rammed . | . . . Kicked . | . . . Crushed . | . . . Highest Temperature 211 | . 40 211 Average Temperature 37 | . 13 81 Received Heat Transfer 143 | . 63 80 Siege Activations . | . . . Robots Corrupted . | . . . Combat Hostiles . | . . . Parts Fried . | . . . Impact Corruptions . | . . . Robots Melted . | . . . Combat Hostiles . | . . . Parts Melted 2 | . 2 . Heat Transferred 1406 | . 962 444 Parts Sabotaged . | . . . Parts Stolen . | . . . Parts Stripped . | . . . Power Chain Reactions . | . . . Alert | -11 -10 -10 ------- Run | Yrd Mat Min Peak Influence 312 | . 312 88 Initial 88 | . . 88 Average 132 | . 147 72 Maximum Alert Level 1 | . 1 . Low Security (%) 78 | 100 74 100 Level 1 21 | . 25 . Level 2 . | . . . Level 3 . | . . . Level 4 . | . . . Level 5 . | . . . High Security . | . . . Max Security . | . . . Squads Dispatched 1 | . 1 . Investigation 1 | . 1 . Extermination . | . . . Reinforcement . | . . . Assault . | . . . Garrison . | . . . Intercept . | . . . Searches Triggered . | . . . Construction Impeded . | . . . Haulers Reinforced . | . . . Active Scanning Responses . | . . . Cargo Convoy Interrupts . | . . . Stealth | -11 -10 -10 --------- Run | Yrd Mat Min Distress Signals 1 | . 1 . Communications Jammed . | . . . Distress Signals . | . . . Times Spotted 24 | . 18 6 Peak Tracking Total 4 | . 3 4 Tactical Retreats 1 | . . 1 Traps | -11 -10 -10 ------- Run | Yrd Mat Min Traps Triggered 2 | . 2 . Indirectly . | . . . Trap Hack Attempts . | . . . Triggered . | . . . Disarmed . | . . . Reprogrammed . | . . . Reused . | . . . Traps Extracted . | . . . Installed . | . . . Triggered . | . . . Machines | -11 -10 -10 ---------- Run | Yrd Mat Min Machines Disabled 5 | . 5 . Max in Single Turn 2 | . 2 . Machines Repaired . | . . . Machines Dismantled . | . . . Machines Sabotaged . | . . . Overloaded Fab Kills . | . . . Hacking | -11 -10 -10 --------- Run | Yrd Mat Min Machines Accessed 8 | . 8 . Terminals 8 | . 8 . Fabricators . | . . . Repair Stations . | . . . Recycling Units . | . . . Scanalyzers . | . . . Garrison Access . | . . . Total Hacks 13 | . 13 . Successful 9 | . 9 . Failed 4 | . 4 . Catastrophic 1 | . 1 . Database Lockouts . | . . . Manual . | . . . Terminals 13 | . 13 . Fabricators . | . . . Repair Stations . | . . . Recycling Units . | . . . Scanalyzers . | . . . Garrison Access . | . . . Terminal Hacks 9 | . 9 . Record 1 | . 1 . Branch Access Points 1 | . 1 . Alert Level 3 | . 3 . Unreport Threat 1 | . 1 . Locate Traps 1 | . 1 . Surveillance Status 1 | . 1 . Hauler Manifests 1 | . 1 . Fabricator Hacks . | . . . Repair Station Hacks . | . . . Recycling Unit Hacks . | . . . Scanalyzer . | . . . Garrison Access Hacks . | . . . Unauthorized Hacks . | . . . Terminals . | . . . Fabricators . | . . . Repair Stations . | . . . Recycling Units . | . . . Scanalyzers . | . . . Garrison Access . | . . . Data Cores Recovered 1 | . 1 . Used 1 | . 1 . Hacking Detections 5 | . 5 . Full Trace Events 1 | . 1 . Feedback Events . | . . . Feedback Blocked . | . . . Robot Schematics Acquired . | . . . Robots Built . | . . . Authchips . | . . . Time . | . . . Total Robot Build Rating . | . . . Part Schematics Acquired . | . . . Parts Built . | . . . Authchips . | . . . Time . | . . . Total Part Build Rating . | . . . Parts Repaired . | . . . Time . | . . . Parts Recycled . | . . . Recycled Matter . | . . . Retrieved Matter . | . . . Retrieved Components . | . . . Parts Scanalyzed . | . . . Part Schematics Acquired . | . . . Parts Damaged . | . . . Bothacking | -11 -10 -10 ------------ Run | Yrd Mat Min Used RIF Installer . | . . . Robots Hacked . | . . . Non-combat . | . . . Combat . | . . . Robot Hacks Applied . | . . . Relay Couplers Released . | . . . Fabnet Peak Effective % . | . . . Robots Rewired . | . . . Allies Hacked . | . . . Hacks Repelled . | . . . Allies | -11 -10 -10 -------- Run | Yrd Mat Min Total Allies . | . . . Largest Group . | . . . Highest-Rated Group . | . . . Highest-Rated Ally . | . . . Total Orders . | . . . Ally Attacks . | . . . Total Damage . | . . . Kills . | . . . Allies Corrupted . | . . . Allies Melted . | . . . Intel | -11 -10 -10 ------- Run | Yrd Mat Min Robot Analysis Total . | . . . Derelict Logs Recovered 1 | . . 1 Drone Launches . | . . . Drone Recoveries . | . . . Exploration | -11 -10 -10 ------------- Run | Yrd Mat Min Turns Passed 1277 | 45 1060 172 Spaces Moved 1151 | 46 984 121 Core 8 | 8 . . Treads . | . . . Legs . | . . . Wheels 1143 | 38 984 121 Hover . | . . . Flight . | . . . Fastest Speed 50 | 50 80 95 Average Speed 92 | 74 92 100 Slowest Speed 110 | 80 95 110 Overloaded Moves . | . . . Propulsion Burnouts . | . . . Robots Hopped . | . . . Cave-ins Triggered . | . . . Exploration Rate (%) 39 | 3 88 27 Regions Visited 2 Branch Regions 1 Pre-discovered Areas 1 | . . 1 Known Exits Taken 1 | . 1 . Unknown Exits Taken 1 | 1 . . Scrap Searched . | . . . Spaces Dug . | . . . Terrain Destroyed 97 | . 97 . Melee . | . . . Projectile . | . . . AOE 97 | . 97 . Terrain Rammed . | . . . Walls Destroyed . | . . . Machines Disabled . | . . . Actions | -11 -10 -10 --------- Run | Yrd Mat Min Total 1271 | 56 1067 148 Wait 7 | . 3 4 Move 1149 | 45 983 121 Hop . | . . . Pick Up 27 | 7 18 2 Fast Attach . | . . . Attach 9 | 4 3 2 Detach . | . . . Swap 8 | . 8 . Drop 4 | . 4 . Fire 67 | . 48 19 Melee . | . . . Ram . | . . . Kick . | . . . Crush . | . . . Escape Stasis . | . . . Rewire . | . . . Trap . | . . . Miscellaneous . | . . . Route ------- -11/Scrapyard -10/Materials (discovered 3 exits: [*Mat x2] / *Min) -10/Mines History --------- Turn | Location | Event 5 | -11/Scrapyard | Discovered new exit (range 16) 46 | -11/Scrapyard | Entered Materials 179 | -10/Materials | Discovered new exit (range 9) 206 | -10/Materials | Identified exit to Mines 305 | -10/Materials | Build established: Mutant 328 | -10/Materials | Discovered new exit (range 14) 501 | -10/Materials | Discovered new exit (range 5) 1106 | -10/Materials | Entered Mines 1107 | -10/Mines | Assembled infested the area 1116 | -10/Mines | Learned location of Zion (-6) 1218 | -10/Mines | Lost 3 parts (1p1n1w) 1252 | -10/Mines | Core integrity fell below 50% 1275 | -10/Mines | Core integrity fell below 20% 1278 | -10/Mines | Destroyed by as-45978 with Assembled Heavy Rifle Last Messages --------------- 01107_ ALERT: Infestation in the mines, dispatching Demolisher response squad. 01116_ Acquired derelict log, extracted data. World map updated: -6/Zion. 01176_ as-36330 sneak attacks. 01176_ T-07 Excavator destroyed. 01182_ Wheel destroyed. 01184_ Grenade Launcher destroyed. 01187_ Lgt. Ion Engine destroyed. 01192_ as-36330 destroyed. 01194_ Acquired 18 matter. 01199_ Acquired Wheel. 01200_ Acquired 23 matter. 01204_ Acquired Imp. Terrain Scanner. 01210_ as-84626 sneak attacks. 01217_ as-84626 destroyed. 01220_ Acquired 10 matter. 01259_ Wheel destroyed. 01265_ Med. Laser destroyed. 01271_ as-16843 destroyed. Map ----- +----------------------------------------------------+ | ????????????????????????????????????????#????????? | | ??????????????????????????????????????? ##???????? | | ???????????????????????????????##????? ###?????? | | ???????????????????????????????# ????? ##????? | | ???????????????????????????????# #??? ##???? | | ???????????????????????????????# #??? ???? | | ???????????????????????????????# #??# ????? | | ???????????????????????????????# #?? #?????? | | ???????????????????????????????# #? #??????? | | ????????????????????############ #? #???????? | | ????????????????????# ## # ## #### ? | | ????????????????????# ? | | ????????????????????# ## ? | | ????????????????????# ## ## ## ? | | ????????????????????# ### ##### #???## ? | | ????????????????????# #?####??## #???????? ?? | | ?????????????????#### #??????## ##?????????????? | | ?????????????????# #??????# ##????????????? | | ?????????????????#! #??????# ##???????????? | | ?????????????????# #####??????# #### ??? | | #????????????????# #??????????# ??? | | ##????????????#### #?????????## ??? | | ######??????## #????????## ##### ??? | | ######## #????##### #?????? ????? | | # ####????# a " #??????????? | | ### ##???????#@### #?????????? | | #?## ##########????????#%#?## #?????????? | | ???####?????????????????#=#??# # #?????????? | | ????????????????????????# #??# ## ##?????????? | | ????????????????????????#%#??# #?#####??????????? | | ????????????????????????# #??# #????????????????? | | ????????????????????????# #??# #????????????????? | | ???????????????????????? #??# #????????????????? | | ????????????????????????# #??#? #????????????????? | | ????????????????????????? ???? #????????????????? | | ????????????????????????? ???? #????????????????? | | ?????????????????????????a???? #????????????????? | | ????????????????????????? ???? #????????????????? | | ????????????????????????? ???????????????????????? | | ????????????????????????? ???????????????????????? | | ????????????????????????? ???????????????????????? | | ?????????????????????????????????????????????????? | | ?????????????????????????????????????????????????? | | ?????????????????????????????????????????????????? | | ?????????????????????????????????????????????????? | | ?????????????????????????????????????????????????? | | ?????????????????????????????????????????????????? | | ?????????????????????????????????????????????????? | | ?????????????????????????????????????????????????? | | ?????????????????????????????????????????????????? | +----------------------------------------------------+ Best States ------------- Heat Dissipation 25 Energy Generation 10 Energy Capacity 125 Matter Stores 263 Matter Capacity 300 Sight Range 16 Robot Scan Range 14 Terrain Scan Density 10 Evasion (%) 44 Item Schematics ----------------- None Robot Schematics ------------------ None Fabricated ------------ Nothing Alien Tech Used ----------------- None Achievements -------------- None Challenges ------------ None Game ------ Seed HeavyResetSuperbattery Manual? 0 Play Time 00:16:54 Cumulative 63.3 hours Start 2024.03.24 @ 23:58:41 End 2024.03.25 @ 00:13:38 Sessions 1 Manual Loads 0 Difficulty Rogue Special Mode None Game No. 57 Rogue 55 Adventurer 0 Explorer 2 Win Type - Total 0 Types 0/0/0/0/0/0/0/0/0 Lore% 20 Gallery% 34 Achievement% 21 Wizard Run 0 Options --------- Layout 1 ASCII 0 Keyboard 0 Movement Mouse Keybinds 0 Fullscreen 2 Font 48/Tamsyn Map View 50x35 Zoom Use 0% Tactical HUD 1 Map Filters NONE Filters NONE Steam 1 RUN: 65b8ee2d-5c8f-45d2-859d-205edc542de2